[Event "AI Cup Div-3 2023"]
[Site "Online"]
[Date "2023.09.25"]
[Round "2.2"]
[White "Muradli, Mahammad"]
[Black "Xiong, Jeffery"]
[Result "0-1"]
[Annotator "TA"]
[ECO "D27"]
[WhiteElo "2550"]
[BlackElo "2693"]
[PlyCount "74"]
[EventDate "2023.09.18"]
[EventType "k.o."]
[EventCountry "NET"]
[SourceTitle "playchess.com"]
[Source "ChessBase"]
[SourceQuality "1"]
[TimeControl "900+3"]

{[%evp 12,74,16,20,42,25,15,7,22,6,28,16,18,-2,-12,-10,0,-6,-11,-27,0,0,0,0,22,11,59,56,51,56,50,53,203,40,36,24,36,0,0,0,0,0,0,0,0,-725,-739,-728,-726,-704,-705,-845,-839,-964,-935,-959,-982,-923,-876,-950,-905,-900,-816,-856,-829]} 1. d4 {[%emt 0:00:08]} d5 {[%emt 0:00:06]} 2. c4 {[%emt 0:00:02]} e6 {[%emt 0:00:01]} 3. Nf3 {[%emt 0:00:03]} dxc4 {[%emt 0:00:01]} 4. e3 {[%emt 0:00:06]} Nf6 {[%emt 0:00:01]} 5. Bxc4 {[%emt 0:00:01]} c5 {[%emt 0:00:01]} 6. O-O {[%emt 0:00:04]} a6 {[%emt 0:00:01]} 7. b3 {[%emt 0:00:01] seems to push 7.dxc5 aside.} b6 {[%emt 0:01:31] D27: Queen's Gambit Accepted: Classical main line: 7 e4!? and 7 a4.} 8. Bb2 {[%emt 0:00:46]} Bb7 {[%emt 0:00:07]} 9. Nbd2 {[%emt 0:00:19]} Nbd7 {[%emt 0:00:01] The position is equal.} 10. Be2 {[%emt 0:01:47]} Be7 {[%emt 0:00:08]} 11. dxc5 {[%emt 0:00:42]} Nxc5 {[%emt 0:00:10]} 12. Nd4 {[%emt 0:00:05]} O-O {[%emt 0:00:07]} 13. Bf3 {[%emt 0:00:11]} Nd5 {[%emt 0:00:43]} 14. Qe2 {[%emt 0:01:12] [#]} b5 $146 {[%emt 0:00:11]} ({Predecessor:} 14... Rc8 15. Rac1 b5 16. Ne4 Qb6 17. Nxc5 Bxc5 18. a3 Rfd8 19. b4 Bxd4 20. Bxd4 Qd6 {1-0 Dudin,G (2471)-Seres,L (2383) Budapest Vezerkepzo GM 10 2022 (7)}) 15. a3 {[%emt 0:00:47]} Qb6 {[%emt 0:00:11]} 16. Rac1 {[%emt 0:00:37]} Rac8 {[%emt 0:00:08]} 17. Rc2 {[%emt 0:00:46]} g6 {[%emt 0:00:11]} 18. Rfc1 {[%emt 0:01:05]} Rfd8 {[%emt 0:01:02]} (18... Qd6 $11 {is more appropriate.}) 19. Bxd5 $14 {[%emt 0:01:16]} exd5 {[%emt 0:00:03]} 20. N2f3 {[%emt 0:00:41]} Ne4 {[%emt 0:00:07]} 21. Ne5 {[%emt 0:01:01] Strongly threatening Ndc6.} Bd6 {[%emt 0:00:42] [#]} (21... Rxc2 $1 $14 22. Rxc2 Rc8) 22. Nd3 $2 {[%emt 0:01:35] A dynamic duo of knights.} (22. Ndc6 $1 $18 {[%cal Rc6d8]}) 22... Rxc2 {[%emt 0:05:50]} 23. Qxc2 {[%emt 0:00:00]} (23. Rxc2 {simplifies} Rc8 24. Rxc8+ Bxc8 25. Qd1) 23... Rc8 {[%emt 0:00:08]} 24. Qxc8+ {[%emt 0:00:07]} Bxc8 {[%emt 0:00:01]} 25. Rxc8+ {[%emt 0:00:00]} Bf8 {[%emt 0:00:03]} 26. Ne5 {[%emt 0:00:16]} Qb7 {[%emt 0:00:09]} 27. Rd8 {[%emt 0:00:23] [#] Nd7 is the strong threat.} Qc7 $36 {[%emt 0:00:25][%csl LRd8,LRe5][%mdl 2048] Prevents Nd7. White is under pressure.} 28. Ndc6 {[%emt 0:01:00][%mdl 8192]} (28. Nec6 $11) 28... f6 $19 {[%emt 0:00:14] Black is clearly winning.} 29. Rd7 {[%emt 0:00:08]} Qc8 {[%emt 0:00:13]} 30. Rd8 {[%emt 0:00:31]} Qe6 {[%emt 0:00:49]} 31. Nd7 {[%emt 0:00:43]} Qxc6 {[%emt 0:00:02]} 32. f3 {[%emt 0:00:01]} Qc2 {[%emt 0:00:38][%csl LRb2,LRb3][%cal Rc2d1]} 33. fxe4 {[%emt 0:00:01]} Qb1+ {[%emt 0:00:01]} 34. Kf2 {[%emt 0:00:01]} Qxb2+ {[%emt 0:00:00]} 35. Kg3 {[%emt 0:00:02]} Qxa3 {[%emt 0:00:12]} 36. exd5 {[%emt 0:00:19]} Qd6+ {[%emt 0:00:03]} 37. Kf2 {[%emt 0:00:00]} Kf7 {[%emt 0:00:11] Weighted Error Value: White=0.40/Black=0.16 (very precise)} ({Weaker is} 37... Qxd5 38. Nxf6+ {[%mdl 64] Discovered Attack, Double Attack} (38. Nxf8 Qxd8 39. Nxg6 hxg6 40. g4 a5 41. h4 a4 42. bxa4 bxa4 43. Kg3 a3 44. h5 a2 45. h6 a1=Q 46. h7+ Kxh7 47. Kh3 Qh1+ 48. Kg3 Qd6+ 49. Kf2 Qdh2#) 38... Kf7 39. Nxd5 $18) (37... Kg7 38. Nxf8 Qe7 {[%mdl 64] Deflection} 39. Rd7 Kxf8 40. Rxe7 Kxe7 41. e4 $17) 0-1

[Event "AI Cup Div-3 2023"]
[Site "Online"]
[Date "2023.09.25"]
[Round "2.3"]
[White "Durarbayli, Vasif"]
[Black "Robson, Ray"]
[Result "0-1"]
[Annotator "TA"]
[ECO "C65"]
[WhiteElo "2625"]
[BlackElo "2699"]
[PlyCount "96"]
[EventDate "2023.09.18"]
[EventType "k.o."]
[EventCountry "NET"]
[SourceTitle "playchess.com"]
[Source "ChessBase"]
[SourceQuality "1"]
[TimeControl "900+3"]

{[%evp 9,96,21,22,15,29,22,21,21,23,9,26,20,25,29,28,25,18,13,17,13,41,-9,-9,-9,-15,-37,-36,-63,-44,-48,-40,-46,-31,-66,-66,-90,-105,-83,-92,-105,-94,-97,-96,-106,0,-92,0,-146,-129,-131,-131,-207,-197,-204,-202,-365,-373,-351,-368,-329,-166,-778,-770,-732,-732,-1232,-1224,-1714,-1679,-29988,-29989,-29989,-29977,-29977,-29978,-5577,-1935,-1831,-1643,-1685,-1663,-29985,-1532,-6270,-6197,-5914,-5798,-4929,-4825]} 1. e4 {[%emt 0:00:06]} e5 {[%emt 0:03:18]} 2. Nf3 {[%emt 0:00:04]} Nc6 {[%emt 0:00:04]} 3. Bb5 {[%emt 0:00:04]} Nf6 {[%emt 0:00:04]} 4. d3 {[%emt 0:00:03]} Bc5 {[%emt 0:00:04]} 5. c3 {[%emt 0:00:03]} O-O {[%emt 0:00:08]} 6. O-O {[%emt 0:00:04] C65: Ruy Lopez: Berlin Defence (3...Nf6), unusual lines and 4 0-0 Bc5.} d5 {[%emt 0:00:04]} 7. exd5 {[%emt 0:00:04]} Qxd5 {[%emt 0:00:05][%cal Oc5f2]} 8. Bc4 {[%emt 0:00:03] The position is equal.} Qd8 {[%emt 0:00:08]} 9. b4 {[%emt 0:00:04]} Bd6 {[%emt 0:00:09]} 10. Nbd2 {[%emt 0:00:09]} h6 {[%emt 0:00:38]} 11. Re1 {[%emt 0:00:05]} Re8 {[%emt 0:00:05]} 12. a4 {[%emt 0:00:16]} a6 {[%emt 0:00:14][%cal Ba7a6,Ba6a5][%mdl 32]} 13. Ne4 {[%emt 0:00:35]} Nxe4 {[%emt 0:00:47]} 14. dxe4 {[%emt 0:00:06] [#]} Be6 $146 {[%emt 0:00:10]} ({Predecessor:} 14... Qf6 15. Be3 Bg4 16. Be2 Red8 17. Nd2 Be6 18. Bg4 a5 19. b5 Nb8 20. Bxe6 Qxe6 {1-0 So,W (2789)-Anand,V (2775) Leuven GCT rapid 2017 (6)}) 15. Bf1 {[%emt 0:00:16]} (15. Bxe6 $14 Rxe6 16. Qd3) 15... a5 $11 {[%emt 0:00:32]} 16. b5 {[%emt 0:00:10]} Nb8 {[%emt 0:00:28]} 17. Qc2 {[%emt 0:01:50]} Nd7 {[%emt 0:00:08]} 18. Be3 {[%emt 0:00:18]} Qe7 {[%emt 0:00:09]} 19. Nd2 {[%emt 0:00:34]} Bc5 {[%emt 0:00:15]} 20. Nc4 {[%emt 0:00:13]} Bxe3 {[%emt 0:00:37]} 21. Rxe3 {[%emt 0:00:05]} b6 {[%emt 0:00:32]} 22. Rg3 {[%emt 0:00:24]} Rad8 {[%emt 0:00:15]} 23. Re1 {[%emt 0:00:04]} Nc5 {[%emt 0:00:25]} 24. h3 {[%emt 0:00:55]} (24. Nxe5 $2 Bb3 25. Qc1 Qxe5 $19) 24... Qh4 {[%emt 0:00:30]} 25. Rf3 {[%emt 0:00:28]} (25. Nxe5 $2 Bb3 26. Qb2 Rxe5 $19) 25... Qg5 {[%emt 0:00:25]} 26. Rg3 {[%emt 0:00:06]} Qh4 {[%emt 0:00:15]} 27. Rf3 $1 {[%emt 0:01:33]} (27. Nxe5 $2 Bb3 28. Qb2 Rxe5 $19) 27... Qg5 {[%emt 0:00:05]} (27... Rd7 $17 28. Qb1 (28. Nxe5 $2 Bb3 $19 {[%mdl 64] Discovered Attack}) 28... f6) 28. Ree3 {[%emt 0:00:18] Black keeps a firm grip on the game.} (28. Rg3 $11 Qh5 29. Nd2) 28... h5 {[%emt 0:00:09] Black is much more active.} 29. Rg3 {[%emt 0:00:08]} Qh6 {[%emt 0:00:06]} 30. h4 {[%emt 0:00:14]} (30. Rgf3 $17) 30... Qf4 $19 {[%emt 0:00:15]} 31. Rg5 {[%emt 0:00:16]} Qxh4 {[%emt 0:00:26]} 32. Reg3 {[%emt 0:00:21] [#]} (32. Rxe5 Bxc4 33. Rxe8+ Rxe8 34. Bxc4) 32... g6 {[%emt 0:01:42]} (32... Nxe4 33. Rxg7+ Kh8 34. f3 $17) 33. Nxe5 {[%emt 0:01:37]} Qxe4 {[%emt 0:00:56]} (33... Nxe4 34. Rxg6+ fxg6 35. Nxg6 $17) 34. Qc1 {[%emt 0:00:09]} Bf5 {[%emt 0:00:14]} (34... Qxa4 35. Rxg6+ fxg6 36. Rxg6+ Kf8 37. Nc6) (34... Nb3 $142 35. Qe3 Qxe3 36. Rxe3 Rd1) 35. Rxh5 $2 {[%emt 0:01:43]} (35. Nxg6 Bxg6 36. Rxh5) 35... Qxe5 {[%emt 0:00:12]} (35... Rxe5 36. Qh6 f6 37. Qh8+ Kf7 38. Rh7+ Ke6 39. Qxd8 Bg4 40. Rxg4 Qxg4 41. Qc8+ Kd5 42. Qxg4) 36. Qh6 {[%emt 0:00:03]} Qg7 {[%emt 0:00:10]} ({Worse is} 36... Nxa4 37. Bc4 Rd1+ 38. Kh2 $11) 37. Qf4 {[%emt 0:01:12]} Rd1 {[%emt 0:00:09]} 38. Qxc7 {[%emt 0:00:09]} Ne4 {[%emt 0:00:26] ( -> ...Rxf1+)} ({Stronger than} 38... Nxa4 39. Rxf5 Nc5 40. Rf4 $17 (40. Qxb6 $2 {too greedy.} Ne4 $19)) 39. Qc6 {[%emt 0:00:34]} Rxf1+ {[%emt 0:00:09]} 40. Kh2 {[%emt 0:00:04] [#]} Rh1+ $3 {[%emt 0:00:25]} 41. Kxh1 {[%emt 0:00:05]} Nxg3+ {[%emt 0:00:03]} 42. Kh2 {[%emt 0:00:03]} Nxh5 {[%emt 0:00:08]} 43. Qxe8+ {[%emt 0:00:04]} Qf8 {[%emt 0:00:04]} 44. Qe5 {[%emt 0:00:05]} Qd8 {[%emt 0:00:11]} 45. f3 {[%emt 0:00:07]} Ng7 {[%emt 0:00:04]} (45... Qh4+ $142 46. Kg1 Nf4 47. c4 Qg3 48. Qe8+ Kg7 49. Qe5+ f6 50. Qc7+ Kh6 51. Qxf4+ Qxf4 52. Kf1 Qe3 53. g4 Qd2 54. Kg1 Kg5 55. Kh1 Kf4 56. Kg1 Kxf3 57. gxf5 Qg2#) 46. g4 {[%emt 0:00:05] Black is clearly winning.} Bc2 {[%emt 0:00:03]} 47. Kg3 {[%emt 0:00:04]} Bxa4 {[%emt 0:00:04]} 48. c4 {[%emt 0:00:05]} Ne6 {[%emt 0:00:04] Weighted Error Value: White=0.74/Black=0.29 (precise)} 0-1

[Event "AI Cup Div-3 2023"]
[Site "Online"]
[Date "2023.09.26"]
[Round "3.1"]
[White "Sevian, Samuel"]
[Black "Xiong, Jeffery"]
[Result "1-0"]
[Annotator "TA"]
[ECO "D02"]
[WhiteElo "2698"]
[BlackElo "2693"]
[PlyCount "67"]
[EventDate "2023.09.18"]
[EventType "k.o."]
[EventCountry "NET"]
[SourceTitle "playchess.com"]
[Source "ChessBase"]
[SourceQuality "1"]
[TimeControl "900+3"]

{[%evp 9,67,5,4,7,18,1,1,0,18,14,0,0,0,-15,0,0,90,37,43,41,54,-35,60,85,117,113,150,0,-7,-31,161,189,249,202,379,285,443,426,772,726,740,721,1375,1384,1318,783,1314,1258,1315,1315,1414,1335,1318,1269,1178,1150,1112,1053,1120,1085]} 1. Nf3 {[%emt 0:00:06]} d5 {[%emt 0:00:05]} 2. d4 {[%emt 0:00:03]} Nf6 {[%emt 0:00:02]} 3. Bf4 {[%emt 0:00:02]} c5 {[%emt 0:00:09]} 4. e3 {[%emt 0:00:00]} e6 {[%emt 0:00:05]} 5. Nbd2 {[%emt 0:00:16]} Qb6 {[%emt 0:00:02]} 6. Rb1 {[%emt 0:00:05] D02: 1 d4 d5 2 Nf3 sidelines, including 2...Nf6 3 g3 and 2...Nf6 3 Bf4.} Bd6 {[%emt 0:00:05] is currently scoring better than 6...Nc6.} 7. Bg3 {[%emt 0:00:52]} Nbd7 {[%emt 0:01:47] [#]} 8. c4 $146 {[%emt 0:00:52] The position is equal.} ({Predecessor:} 8. c3 Qc7 9. Bd3 O-O 10. a3 e5 11. dxe5 Nxe5 12. Nxe5 Bxe5 13. f4 Bd6 14. O-O {0-1 Ftiees,S (1797)-Al Qudaimi,B (2440) Sousse BICA op 1st 2021 (4)}) 8... cxd4 {[%emt 0:00:26]} 9. exd4 {[%emt 0:00:16]} dxc4 {[%emt 0:00:14]} 10. Bxc4 {[%emt 0:00:01]} O-O {[%emt 0:00:23]} 11. Bd3 {[%emt 0:00:01]} Bxg3 {[%emt 0:04:27]} 12. hxg3 {[%emt 0:00:03][%cal Og3g4]} Qd6 {[%emt 0:00:13]} (12... h6 $11 {keeps the balance.}) 13. Nc4 {[%emt 0:00:21] White is more active.} (13. g4 $1 $16 {[%cal Rg4g5]}) 13... Qb4+ $14 {[%emt 0:00:05]} 14. Kf1 {[%emt 0:00:15][%cal Og3g4]} h6 {[%emt 0:00:03]} 15. Ne3 {[%emt 0:01:49]} (15. a3 $14 Qe7 16. Nfe5) 15... Nb6 {[%emt 0:00:19]} (15... b6 $1 $15) 16. g4 {[%emt 0:01:03] Hoping for g5.} Rd8 {[%emt 0:00:02]} 17. a3 $36 {[%emt 0:00:20][%mdl 2048] White has strong initiative.} Qd6 {[%emt 0:00:02] [#]} 18. g5 $2 {[%emt 0:02:41]} (18. Rh4 $1 $16) 18... hxg5 $11 {[%emt 0:00:03]} 19. Nxg5 {[%emt 0:00:00] Qf3 is the strong threat.} Qf4 {[%emt 0:02:06] [#] This costs Black the game.} (19... Qxd4 $15 {keeps the upper hand.} 20. Rh8+ {[%mdl 64] Decoy} Kxh8 21. Nxf7+ Kg8 22. Nxd8 Qh4) 20. Nf3 $1 $18 {[%emt 0:00:08][%cal Bg5f3,Bf3e5,Be5c4][%mdl 32] aiming for Rh4.} Bd7 {[%emt 0:00:03]} 21. Rh4 {[%emt 0:00:07] Inhibits Bc6.} Qd6 {[%emt 0:01:45]} (21... Qc7 22. Ne5 Bc6) 22. Ne5 {[%emt 0:00:03]} Be8 {[%emt 0:00:01]} (22... Bc6 $142 23. Rh8+ {[%mdl 64] Decoy} Kxh8 24. Nxf7+ Kg8 25. Nxd6 Rxd6) 23. Qf3 {[%emt 0:00:06] White is clearly winning.} Nbd7 {[%emt 0:00:02]} (23... Nbd5 $142 24. Re1 Nxe3+ 25. fxe3 Qd5) 24. Qh3 {[%emt 0:00:57][%csl Gh3][%cal Rh4h8]} (24. Qxb7 $2 {is the wrong capture.} Nxe5 25. Bc2 Nc6 $19) 24... Kf8 {[%emt 0:00:02]} 25. N5c4 {[%emt 0:00:25]} ({Weaker is} 25. Rh8+ Ke7 26. Nf3 Nb6 $18) 25... Qc7 {[%emt 0:01:22]} 26. Rh8+ {[%emt 0:00:02]} Ke7 {[%emt 0:00:00] [#]} 27. Nf5+ $1 {[%emt 0:00:16][%mdl 512]} exf5 {[%emt 0:00:02]} 28. Re1+ {[%emt 0:00:01]} (28. Qxf5 Nf8 29. Re1+ Ne6 $17) 28... Ne4 {[%emt 0:00:02]} 29. Qxf5 {[%emt 0:01:03]} Ndf6 {[%emt 0:00:03]} 30. Bxe4 {[%emt 0:00:11] Intending Bd3+ and mate.} Qxc4+ {[%emt 0:00:29]} 31. Bd3+ {[%emt 0:00:01]} Qe6 {[%emt 0:00:01]} 32. Rxe6+ {[%emt 0:01:17]} fxe6 {[%emt 0:00:00]} 33. Qg5 {[%emt 0:00:01]} Bg6 {[%emt 0:00:58]} 34. Qxg6 {[%emt 0:00:04] An entertaining game by Sevian.   Weighted Error Value: White=0.24 (precise) /Black=0.56} 1-0

[Event "AI Cup Div-3 2023"]
[Site "Online"]
[Date "2023.09.26"]
[Round "3.1"]
[White "Tomashevsky, Evgeny"]
[Black "Alekseev, Evgeny"]
[Result "1/2-1/2"]
[Annotator "ChessBase"]
[ECO "D36"]
[WhiteElo "2694"]
[BlackElo "2573"]
[PlyCount "97"]
[EventDate "2023.09.18"]
[EventType "k.o."]
[EventCountry "NET"]
[SourceTitle "playchess.com"]
[Source "ChessBase"]
[SourceQuality "1"]
[TimeControl "900+3"]

1. c4 {[%emt 0:00:08]} e6 {[%emt 0:00:06]} 2. Nc3 {[%emt 0:00:09]} d5 {[%emt 0:00:04]} 3. d4 {[%emt 0:00:02]} Nf6 {[%emt 0:00:11]} 4. cxd5 {[%emt 0:00:04]} exd5 {[%emt 0:00:02]} 5. Bg5 {[%emt 0:00:03]} c6 {[%emt 0:00:20]} 6. e3 {[%emt 0:00:03]} Be7 {[%emt 0:00:07]} 7. Bd3 {[%emt 0:00:06]} Nbd7 {[%emt 0:00:04]} 8. Qc2 {[%emt 0:00:06]} Nh5 {[%emt 0:00:27]} 9. Bxe7 {[%emt 0:00:03]} Qxe7 {[%emt 0:00:02]} 10. O-O-O {[%emt 0:00:06]} Nb6 {[%emt 0:01:04]} 11. Kb1 {[%emt 0:00:09]} g6 {[%emt 0:00:14]} 12. Nf3 {[%emt 0:00:43]} Be6 {[%emt 0:00:37]} 13. Rc1 {[%emt 0:01:07]} Ng7 {[%emt 0:00:45]} 14. h4 {[%emt 0:00:10]} O-O-O {[%emt 0:01:13]} 15. Na4 {[%emt 0:00:48]} Kb8 {[%emt 0:00:24]} 16. Nc5 {[%emt 0:02:19]} Bf5 {[%emt 0:00:11]} 17. Ne5 {[%emt 0:00:56]} f6 {[%emt 0:01:49]} 18. Nf3 {[%emt 0:00:03]} Bxd3 {[%emt 0:00:29]} 19. Qxd3 {[%emt 0:00:21]} Ne8 {[%emt 0:00:20]} 20. h5 {[%emt 0:01:18]} g5 {[%emt 0:00:12]} 21. h6 {[%emt 0:00:01]} Nd6 {[%emt 0:00:11]} 22. Nd2 {[%emt 0:00:02]} Rde8 {[%emt 0:01:40]} 23. g3 {[%emt 0:01:01]} Nd7 {[%emt 0:00:46]} 24. Ndb3 {[%emt 0:00:08]} Nxc5 {[%emt 0:00:52]} 25. Nxc5 {[%emt 0:00:02]} Ne4 {[%emt 0:00:04]} 26. Qc2 {[%emt 0:00:27]} Nxc5 {[%emt 0:00:23]} 27. Qxc5 {[%emt 0:00:02]} Qxc5 {[%emt 0:00:10]} 28. Rxc5 {[%emt 0:00:00]} Re6 {[%emt 0:00:06]} 29. b4 {[%emt 0:00:06]} a6 {[%emt 0:01:03]} 30. a4 {[%emt 0:00:13]} b5 {[%emt 0:00:06]} 31. axb5 {[%emt 0:00:42]} axb5 {[%emt 0:00:02]} 32. Rc3 {[%emt 0:00:00]} Kb7 {[%emt 0:00:26]} 33. Ra3 {[%emt 0:00:02]} Ree8 {[%emt 0:00:27]} 34. Kb2 {[%emt 0:00:33]} Ra8 {[%emt 0:00:01]} 35. Rxa8 {[%emt 0:00:23]} Rxa8 {[%emt 0:00:03]} 36. g4 {[%emt 0:01:22]} Kc7 {[%emt 0:00:37]} 37. Re1 {[%emt 0:00:50]} Kd6 {[%emt 0:00:45]} 38. f3 {[%emt 0:00:14]} Rg8 {[%emt 0:00:02]} 39. e4 {[%emt 0:00:34]} Rg6 {[%emt 0:00:02]} 40. Rh1 {[%emt 0:00:03]} Rg8 {[%emt 0:00:03]} 41. Kc3 {[%emt 0:00:47]} Ra8 {[%emt 0:00:06]} 42. Kb3 {[%emt 0:00:01]} Rg8 {[%emt 0:00:03]} 43. Ra1 {[%emt 0:00:10]} Rg6 {[%emt 0:00:05]} 44. Rh1 {[%emt 0:00:21]} Rg8 {[%emt 0:00:01]} 45. Kb2 {[%emt 0:00:08]} Rg6 {[%emt 0:00:05]} 46. Kc3 {[%emt 0:00:05]} Rg8 {[%emt 0:00:02]} 47. Kb2 {[%emt 0:00:10]} Rg6 {[%emt 0:00:03]} 48. Kc3 {[%emt 0:00:01]} Rg8 {[%emt 0:00:01]} 49. Kb2 {[%emt 0:00:02]} 1/2-1/2

[Event "AI Cup Div-3 2023"]
[Site "Online"]
[Date "2023.09.26"]
[Round "3.1"]
[White "Meier, Georg"]
[Black "Robson, Ray"]
[Result "1/2-1/2"]
[Annotator "TA"]
[ECO "D73"]
[WhiteElo "2628"]
[BlackElo "2699"]
[PlyCount "124"]
[EventDate "2023.09.18"]
[EventType "k.o."]
[EventCountry "NET"]
[SourceTitle "playchess.com"]
[Source "ChessBase"]
[SourceQuality "1"]
[TimeControl "900+3"]

{[%evp 16,124,12,15,21,0,0,0,0,0,0,0,0,0,5,6,8,0,0,-7,0,0,0,0,0,0,8,0,0,-4,-10,-6,0,0,0,-21,0,-22,-13,-14,-13,-14,-13,-13,0,-23,-23,-21,-21,-11,-13,-11,-11,-17,-16,-10,-7,-18,-22,-23,0,0,0,0,0,0,0,0,0,0,9,9,9,9,14,14,14,9,14,14,14,14,14,0,14,14,14,0,0,0,14,14,14,14,14,0,0,0,0,0,0,0,0,0,0,0,0,0,0,0,0]} 1. Nf3 {[%emt 0:00:04]} d5 {[%emt 0:00:06]} 2. g3 {[%emt 0:00:02]} c5 {[%emt 0:00:14]} 3. Bg2 {[%emt 0:00:01]} Nf6 {[%emt 0:00:01]} 4. O-O {[%emt 0:00:03]} g6 {[%emt 0:00:03]} 5. c3 {[%emt 0:00:16]} Bg7 {[%emt 0:00:06]} 6. d4 {[%emt 0:00:01]} cxd4 {[%emt 0:00:07]} 7. cxd4 {[%emt 0:00:00]} Nc6 {[%emt 0:00:18]} 8. Ne5 {[%emt 0:00:20]} Bd7 {[%emt 0:00:05]} 9. Nc3 {[%emt 0:00:12]} e6 {[%emt 0:00:03] D73: Fianchetto Grünfeld: 5 Nf3 .} 10. Nxd7 {[%emt 0:01:03]} (10. Bg5 {keeps more tension.} h6 11. Bxf6 Bxf6 12. f4) 10... Qxd7 {[%emt 0:00:05]} 11. e3 {[%emt 0:00:01]} O-O {[%emt 0:00:10]} 12. Qe2 {[%emt 0:00:01] [#]} Rac8 $146 {[%emt 0:01:07]} ({Predecessor:} 12... Rfc8 13. Bd2 Ne8 14. Rfd1 Nd6 15. Be1 Rc7 16. f3 Rac8 17. Bf2 Ne7 18. a4 Qc6 {½-½ Prohaszka,P (2593)-Smith,B (2453) Zalakaros op 35th 2016 (4)}) 13. Bd2 {[%emt 0:00:03]} Ne8 {[%emt 0:00:06]} 14. Rfc1 {[%emt 0:00:38]} Nd6 {[%emt 0:00:03]} 15. Be1 {[%emt 0:00:10]} Rc7 {[%emt 0:00:18]} 16. Qd1 {[%emt 0:00:10]} Rfc8 {[%emt 0:01:11]} 17. Ne2 {[%emt 0:00:01]} Bf8 {[%emt 0:00:30]} 18. Nf4 {[%emt 0:00:06]} h5 {[%emt 0:03:06]} 19. Nd3 {[%emt 0:01:53]} Bh6 {[%emt 0:00:06]} 20. Rc2 {[%emt 0:01:12]} Qe7 {[%emt 0:00:54]} 21. Rac1 {[%emt 0:00:08]} Nc4 {[%emt 0:00:46]} 22. Nf4 {[%emt 0:01:54]} Bxf4 {[%emt 0:02:29]} 23. gxf4 {[%emt 0:00:02][%cal Of4f5]} Nb4 {[%emt 0:00:01]} 24. Bxb4 {[%emt 0:00:13]} Qxb4 {[%emt 0:00:01]} 25. Qe2 {[%emt 0:00:21] [#] Hoping for b3.} (25. b3 $5 {[%cal Rb3c4]} Nb2 26. Rxc7 (26. Rxb2 $2 {is the wrong capture.} Rxc1 27. Rb1 Rxd1+ $19) 26... Rxc7 27. Qf1 $11) 25... Qe7 {[%emt 0:00:21]} 26. Bf1 {[%emt 0:00:54]} Nd6 {[%emt 0:00:30]} 27. Qd1 {[%emt 0:00:06]} Kg7 {[%emt 0:00:43]} 28. Bd3 {[%emt 0:00:02]} Qd7 {[%emt 0:00:32]} (28... Ne8 {simplifies} 29. Rxc7 Rxc7 30. Rxc7 Qxc7 31. Qd2 Qd8) 29. Rc5 {[%emt 0:00:57]} Nc4 {[%emt 0:00:44]} 30. Bxc4 {[%emt 0:01:23]} dxc4 {[%emt 0:00:02]} 31. Rg5 {[%emt 0:00:01]} c3 {[%emt 0:00:50]} 32. bxc3 {[%emt 0:01:15]} (32. Qxh5 $2 {loses.} cxb2 33. Rxc7 b1=Q+ $19) 32... Rxc3 {[%emt 0:00:00]} 33. Rxc3 {[%emt 0:00:43]} Rxc3 {[%emt 0:00:01]} 34. Qxh5 $11 {[%emt 0:01:17][%mdl 4096] Endgame KQR-KQR} Qc6 {[%emt 0:00:27] [#] ( -> ...Rc1+)} 35. d5 {[%emt 0:00:01]} exd5 {[%emt 0:00:15]} 36. Qf3 $1 {[%emt 0:00:07]} d4 {[%emt 0:00:21]} 37. Qxc6 {[%emt 0:00:04]} bxc6 {[%emt 0:00:08]} 38. exd4 {[%emt 0:00:04] KR-KR. The position is equal.} Ra3 {[%emt 0:00:02]} 39. f5 {[%emt 0:00:37]} Rxa2 {[%emt 0:00:03]} 40. fxg6 {[%emt 0:00:01]} fxg6 {[%emt 0:00:02]} 41. Rc5 {[%emt 0:00:01]} Rd2 {[%emt 0:00:03]} 42. Rxc6 {[%emt 0:00:01]} Rxd4 {[%emt 0:00:01]} 43. Rc7+ {[%emt 0:00:01]} Kf6 {[%emt 0:00:02]} 44. Rxa7 {[%emt 0:00:00]} Rd3 {[%emt 0:00:04]} 45. Kg2 {[%emt 0:00:02]} g5 {[%emt 0:00:03]} 46. Ra4 {[%emt 0:00:04]} Kf5 {[%emt 0:00:01]} 47. h3 {[%emt 0:00:01]} Rc3 {[%emt 0:00:02]} 48. Rg4 {[%emt 0:00:01]} Rb3 {[%emt 0:00:02]} 49. Rg3 {[%emt 0:00:01]} Rb2 {[%emt 0:00:02]} 50. Rf3+ {[%emt 0:00:02]} Kg6 {[%emt 0:00:01]} 51. Rg3 {[%emt 0:00:01]} Kf5 {[%emt 0:00:02]} 52. Re3 {[%emt 0:00:01]} Ra2 {[%emt 0:00:02]} 53. Kg3 {[%emt 0:00:01]} Rb2 {[%emt 0:00:02]} 54. Rf3+ {[%emt 0:00:01]} Kg6 {[%emt 0:00:01]} 55. h4 {[%emt 0:00:01]} gxh4+ {[%emt 0:00:02]} 56. Kxh4 {[%emt 0:00:00]} Rb4+ {[%emt 0:00:01]} 57. Kg3 {[%emt 0:00:01]} Kg5 {[%emt 0:00:07]} 58. Re3 {[%emt 0:00:02]} Kf5 {[%emt 0:00:01]} 59. f3 {[%emt 0:00:03]} Ra4 {[%emt 0:00:01]} 60. Rb3 {[%emt 0:00:01]} Rc4 {[%emt 0:00:04]} 61. Rb5+ {[%emt 0:00:01]} Kf6 {[%emt 0:00:01]} 62. f4 {[%emt 0:00:00]} Rc1 {[%emt 0:00:02] An even fight not without its subleties.   Weighted Error Value: White=0.04 (flawless) /Black=0.03 (flawless)} 1/2-1/2